[Event "*** Titled Tuesday Blitz"]
[Site "Chess.com"]
[Date "2019.06.04"]
[Round "10"]
[White "BillForster"]
[Black "aquaticpineapples"]
[Result "0-1"]
[WhiteElo "1754"]
[BlackElo "2153"]
[TimeControl "180+2"]
[EndTime "15:17:03 PDT"]
[Termination "aquaticpineapples won by resignation"]

1. d4 {[%clk 0:03:01.9]} 1... d5 {[%clk 0:03:00.5]} 2. c4 {[%clk 0:03:00.3]}
2... e6 {[%clk 0:03:01.5]} 3. Nc3 {[%clk 0:02:59.2]} 3... Nf6 {[%clk 0:03:02.1]}
4. cxd5 {[%clk 0:02:56.3]} 4... exd5 {[%clk 0:03:04]} 5. Bg5 {[%clk 0:02:56.5]}
5... Be7 {[%clk 0:03:05.3]} 6. e3 {[%clk 0:02:56.7]} 6... O-O {[%clk 0:03:06.2]}
7. Bd3 {[%clk 0:02:55.9]} 7... c6 {[%clk 0:03:04.5]} 8. Qc2 {[%clk 0:02:48.8]}
8... h6 {[%clk 0:03:04.1]} 9. Bxf6 {[%clk 0:02:44.6]} 9... Bxf6 {[%clk 0:03:06]}
10. b4 {[%clk 0:02:43.9]} 10... a5 {[%clk 0:02:59.8]} 11. Rb1 {[%clk 0:02:35.5]}
11... axb4 {[%clk 0:03:00.2]} 12. Rxb4 {[%clk 0:02:33.5]} 12... Na6 {[%clk
0:03:00.8]} 13. Rb1 {[%clk 0:02:14.7]} 13... Qd6 {[%clk 0:02:56]} 14. Nf3 {[%clk
0:02:10.5]} 14... Nb4 {[%clk 0:02:55.9]} 15. Qd2 {[%clk 0:02:02.2]} 15... Nxd3+
{[%clk 0:02:55.3]} 16. Qxd3 {[%clk 0:02:03]} 16... b5 {[%clk 0:02:50.3]} 17. Qc2
{[%clk 0:01:39.7]} 17... b4 {[%clk 0:02:30.2]} 18. Ne2 {[%clk 0:01:39.4]} 18...
Ba6 {[%clk 0:02:27]} 19. O-O {[%clk 0:01:37.4]} 19... Bc4 {[%clk 0:02:26]} 20.
Rb2 {[%clk 0:01:26.9]} 20... Ra3 {[%clk 0:02:18.4]} 21. Rfb1 {[%clk 0:01:21.8]}
21... Rfa8 {[%clk 0:02:16.6]} 22. Rxb4 {[%clk 0:01:19.8]} 22... Rxa2 {[%clk
0:02:14.2]} 23. R4b2 {[%clk 0:01:16.8]} 23... Rxb2 {[%clk 0:02:08.5]} 24. Qxb2
{[%clk 0:01:15.2]} 24... Ra2 {[%clk 0:02:07.1]} 25. Qb8+ {[%clk 0:01:11.6]}
25... Qxb8 {[%clk 0:02:07.8]} 26. Rxb8+ {[%clk 0:01:11.2]} 26... Kh7 {[%clk
0:02:09.7]} 27. Nc3 {[%clk 0:00:47.2]} 27... Rc2 {[%clk 0:02:10.7]} 0-1

[Event "*** Titled Tuesday Blitz"]
[Site "Chess.com"]
[Date "2019.06.04"]
[Round "10"]
[White "Swarnapuri"]
[Black "volcanoexplorer"]
[Result "1-0"]
[WhiteElo "2712"]
[BlackElo "2603"]
[TimeControl "180+2"]
[EndTime "15:17:08 PDT"]
[Termination "Swarnapuri won by resignation"]

1. d4 {[%clk 0:03:01.9]} 1... Nf6 {[%clk 0:03:01.2]} 2. Bf4 {[%clk 0:03:03.4]}
2... e6 {[%clk 0:03:01.2]} 3. e3 {[%clk 0:03:04.8]} 3... d6 {[%clk 0:03:02]} 4.
Nf3 {[%clk 0:03:05.3]} 4... g6 {[%clk 0:03:03.5]} 5. Be2 {[%clk 0:03:05.1]} 5...
Bg7 {[%clk 0:03:04.8]} 6. h3 {[%clk 0:03:06.6]} 6... O-O {[%clk 0:03:06]} 7. O-O
{[%clk 0:03:08.2]} 7... Nc6 {[%clk 0:03:07.3]} 8. c4 {[%clk 0:03:09.2]} 8... Nd7
{[%clk 0:03:08.3]} 9. Nc3 {[%clk 0:03:10.6]} 9... e5 {[%clk 0:03:03.1]} 10. Bh2
{[%clk 0:03:11.6]} 10... f5 {[%clk 0:03:02.2]} 11. Rc1 {[%clk 0:03:12.4]} 11...
e4 {[%clk 0:02:57.9]} 12. Nd2 {[%clk 0:03:12.7]} 12... Nf6 {[%clk 0:02:58.8]}
13. Nb3 {[%clk 0:03:11.5]} 13... Bd7 {[%clk 0:02:36]} 14. d5 {[%clk 0:03:07.7]}
14... Ne5 {[%clk 0:02:34.6]} 15. c5 {[%clk 0:03:08.5]} 15... Qe7 {[%clk
0:02:28.3]} 16. cxd6 {[%clk 0:03:08.3]} 16... cxd6 {[%clk 0:02:29.2]} 17. Nd4
{[%clk 0:03:09.9]} 17... g5 {[%clk 0:02:25.8]} 18. Qb3 {[%clk 0:03:04.9]} 18...
b6 {[%clk 0:02:13.1]} 19. Nc6 {[%clk 0:02:59.3]} 19... Bxc6 {[%clk 0:01:59.4]}
20. dxc6+ {[%clk 0:03:00.1]} 20... Kh8 {[%clk 0:02:00.2]} 21. Rfd1 {[%clk
0:02:59.7]} 21... Rfd8 {[%clk 0:01:47.8]} 22. Nb5 {[%clk 0:02:52.6]} 22... Rac8
{[%clk 0:01:30.6]} 23. Nd4 {[%clk 0:02:43]} 23... d5 {[%clk 0:01:13.9]} 24. Nxf5
{[%clk 0:02:44]} 24... Qe6 {[%clk 0:01:10.7]} 25. Nd4 {[%clk 0:02:37.9]} 25...
Qe8 {[%clk 0:01:08.7]} 26. c7 {[%clk 0:02:37.8]} 26... Rd6 {[%clk 0:01:02.5]}
27. Ba6 {[%clk 0:02:35.7]} 27... Nfd7 {[%clk 0:00:53.1]} 28. Bxc8 {[%clk
0:02:34.1]} 28... Qxc8 {[%clk 0:00:55]} 29. Nb5 {[%clk 0:02:33.7]} 29... Rc6
{[%clk 0:00:41.3]} 30. Nxa7 {[%clk 0:02:34.8]} 30... Qxc7 {[%clk 0:00:39.2]} 31.
Nxc6 {[%clk 0:02:36.1]} 31... Nc5 {[%clk 0:00:36.2]} 32. Rxc5 {[%clk 0:02:29.5]}
32... bxc5 {[%clk 0:00:37]} 33. Qxd5 {[%clk 0:02:29.1]} 1-0

[Event "*** Titled Tuesday Blitz"]
[Site "Chess.com"]
[Date "2019.06.04"]
[Round "10"]
[White "Anaiy"]
[Black "BvsN"]
[Result "0-1"]
[WhiteElo "1992"]
[BlackElo "2287"]
[TimeControl "180+2"]
[EndTime "15:17:12 PDT"]
[Termination "BvsN won by checkmate"]

1. d4 {[%clk 0:03:01.9]} 1... d5 {[%clk 0:03:00.5]} 2. c4 {[%clk 0:03:03]} 2...
c6 {[%clk 0:03:01.8]} 3. Nc3 {[%clk 0:03:04]} 3... Nf6 {[%clk 0:03:02.5]} 4. e3
{[%clk 0:03:05.1]} 4... e6 {[%clk 0:03:01.5]} 5. Bd3 {[%clk 0:03:04.1]} 5...
Nbd7 {[%clk 0:02:59.6]} 6. Nf3 {[%clk 0:03:03.6]} 6... dxc4 {[%clk 0:02:59.5]}
7. Bxc4 {[%clk 0:03:04.6]} 7... b5 {[%clk 0:03:01.1]} 8. Bd3 {[%clk 0:03:05.9]}
8... Bd6 {[%clk 0:03:02.4]} 9. O-O {[%clk 0:03:05.8]} 9... O-O {[%clk
0:03:02.3]} 10. a3 {[%clk 0:02:56.6]} 10... Bb7 {[%clk 0:03:02.2]} 11. e4 {[%clk
0:02:56.1]} 11... e5 {[%clk 0:03:02.9]} 12. h3 {[%clk 0:02:48.2]} 12... Re8
{[%clk 0:03:03.4]} 13. Bg5 {[%clk 0:02:46.5]} 13... a6 {[%clk 0:02:52.9]} 14.
Bc2 {[%clk 0:02:43.2]} 14... h6 {[%clk 0:02:42]} 15. Bh4 {[%clk 0:02:41.3]}
15... exd4 {[%clk 0:02:33]} 16. Nxd4 {[%clk 0:02:34]} 16... Ne5 {[%clk 0:02:33]}
17. Nf5 {[%clk 0:02:31.2]} 17... Bf8 {[%clk 0:02:33]} 18. Qxd8 {[%clk
0:02:20.4]} 18... Raxd8 {[%clk 0:02:33.4]} 19. f4 {[%clk 0:01:47.2]} 19... Ng6
{[%clk 0:02:17.7]} 20. e5 {[%clk 0:01:28.8]} 20... Nxh4 {[%clk 0:02:10.1]} 21.
Nxh4 {[%clk 0:01:30.7]} 21... Rd2 {[%clk 0:01:49.9]} 22. Bf5 {[%clk 0:01:02.2]}
22... Nh5 {[%clk 0:01:37.4]} 23. g4 {[%clk 0:00:51.6]} 23... Bc5+ {[%clk
0:01:29.7]} 24. Kh1 {[%clk 0:00:41.1]} 24... Ng3# {[%clk 0:01:24.8]} 0-1

[Event "*** Titled Tuesday Blitz"]
[Site "Chess.com"]
[Date "2019.06.04"]
[Round "10"]
[White "RojonR"]
[Black "FMJoseHerrera"]
[Result "0-1"]
[WhiteElo "2404"]
[BlackElo "2602"]
[TimeControl "180+2"]
[EndTime "15:17:15 PDT"]
[Termination "FMJoseHerrera won by resignation"]

1. e4 {[%clk 0:03:01.9]} 1... c5 {[%clk 0:03:00.5]} 2. Nf3 {[%clk 0:03:02.5]}
2... e6 {[%clk 0:03:02.2]} 3. d4 {[%clk 0:03:02.9]} 3... cxd4 {[%clk 0:03:04.1]}
4. Qxd4 {[%clk 0:03:04.4]} 4... a6 {[%clk 0:03:06]} 5. a3 {[%clk 0:02:59.2]}
5... Qc7 {[%clk 0:03:07.4]} 6. Be2 {[%clk 0:02:55.7]} 6... d6 {[%clk 0:03:06.4]}
7. O-O {[%clk 0:02:54.4]} 7... Nf6 {[%clk 0:03:07.4]} 8. c4 {[%clk 0:02:48.7]}
8... Nbd7 {[%clk 0:03:07.4]} 9. Nc3 {[%clk 0:02:48.6]} 9... b6 {[%clk
0:03:08.3]} 10. h3 {[%clk 0:02:45.7]} 10... Bb7 {[%clk 0:03:09]} 11. Be3 {[%clk
0:02:28.7]} 11... Be7 {[%clk 0:03:09.1]} 12. Rfd1 {[%clk 0:02:28.2]} 12... O-O
{[%clk 0:03:07.9]} 13. Rac1 {[%clk 0:02:28.1]} 13... Rac8 {[%clk 0:03:08.2]} 14.
b4 {[%clk 0:02:28]} 14... Rfe8 {[%clk 0:03:08.6]} 15. Nd2 {[%clk 0:02:23]} 15...
Qb8 {[%clk 0:03:08.5]} 16. Na4 {[%clk 0:02:22.6]} 16... Bd8 {[%clk 0:02:56.5]}
17. f3 {[%clk 0:02:07.8]} 17... Bc7 {[%clk 0:02:57]} 18. Nb3 {[%clk 0:02:06.9]}
18... d5 {[%clk 0:02:49.8]} 19. cxd5 {[%clk 0:02:04.6]} 19... exd5 {[%clk
0:02:51.7]} 20. exd5 {[%clk 0:01:59.8]} 20... Nxd5 {[%clk 0:02:49.3]} 21. Bc4
{[%clk 0:01:09.1]} 21... Be5 {[%clk 0:02:23.2]} 22. Qd3 {[%clk 0:01:04.1]} 22...
Rxc4 {[%clk 0:02:15]} 23. Rxc4 {[%clk 0:00:46.2]} 23... Nxe3 {[%clk 0:02:05.7]}
24. Qxd7 {[%clk 0:00:41.4]} 24... Nxc4 {[%clk 0:02:06.3]} 25. Rc1 {[%clk
0:00:32.6]} 25... Rd8 {[%clk 0:01:56.4]} 26. Qg4 {[%clk 0:00:32.6]} 26... Ne3
{[%clk 0:01:54.7]} 27. Qg5 {[%clk 0:00:32.5]} 27... Bf4 {[%clk 0:01:53.3]} 28.
Qf5 {[%clk 0:00:29.9]} 28... Nxf5 {[%clk 0:01:53.8]} 0-1

[Event "*** Titled Tuesday Blitz"]
[Site "Chess.com"]
[Date "2019.06.04"]
[Round "10"]
[White "PaulfromSPb"]
[Black "fm_magua"]
[Result "0-1"]
[WhiteElo "2660"]
[BlackElo "2498"]
[TimeControl "180+2"]
[EndTime "15:17:16 PDT"]
[Termination "fm_magua won by resignation"]

1. e4 {[%clk 0:03:01]} 1... c5 {[%clk 0:02:59.5]} 2. Ne2 {[%clk 0:03:01.3]} 2...
Nc6 {[%clk 0:03:01.1]} 3. d4 {[%clk 0:02:55.7]} 3... cxd4 {[%clk 0:03:02]} 4.
Nxd4 {[%clk 0:02:56.6]} 4... e5 {[%clk 0:03:03.1]} 5. Nb5 {[%clk 0:02:54]} 5...
d6 {[%clk 0:03:04.1]} 6. N1c3 {[%clk 0:02:53.5]} 6... a6 {[%clk 0:03:05.6]} 7.
Na3 {[%clk 0:02:54.1]} 7... b5 {[%clk 0:03:07.3]} 8. Nd5 {[%clk 0:02:54.9]} 8...
Nce7 {[%clk 0:03:08.9]} 9. c4 {[%clk 0:02:50.4]} 9... Nxd5 {[%clk 0:03:09.6]}
10. Qxd5 {[%clk 0:02:41.5]} 10... Be6 {[%clk 0:03:09.7]} 11. Qd2 {[%clk
0:02:34.8]} 11... Nf6 {[%clk 0:03:10.1]} 12. f3 {[%clk 0:02:35.5]} 12... bxc4
{[%clk 0:03:06.9]} 13. Nxc4 {[%clk 0:02:36.2]} 13... d5 {[%clk 0:03:08.2]} 14.
exd5 {[%clk 0:02:35.6]} 14... Nxd5 {[%clk 0:03:07.4]} 15. a3 {[%clk 0:02:34.4]}
15... Bc5 {[%clk 0:03:01.6]} 16. b4 {[%clk 0:02:33.4]} 16... Bd4 {[%clk
0:02:59.6]} 17. Bb2 {[%clk 0:02:34.6]} 17... Bxb2 {[%clk 0:02:31.5]} 18. Qxb2
{[%clk 0:02:33.9]} 18... O-O {[%clk 0:02:26.1]} 19. Rd1 {[%clk 0:02:33.2]} 19...
Rc8 {[%clk 0:02:23.4]} 20. Be2 {[%clk 0:02:29.5]} 20... Rxc4 {[%clk 0:02:21.7]}
21. Bxc4 {[%clk 0:02:29.1]} 21... Qh4+ {[%clk 0:02:22.6]} 22. g3 {[%clk
0:02:12.1]} 22... Qxc4 {[%clk 0:02:24.5]} 23. Kf2 {[%clk 0:02:13]} 23... e4
{[%clk 0:02:17.2]} 24. fxe4 {[%clk 0:02:07.5]} 24... Qxe4 {[%clk 0:02:07.1]} 25.
Rhe1 {[%clk 0:02:07.9]} 25... Qf5+ {[%clk 0:01:56.7]} 26. Kg1 {[%clk 0:02:07.8]}
26... Rc8 {[%clk 0:01:44.7]} 27. Qe5 {[%clk 0:02:06.3]} 27... Qf3 {[%clk
0:01:41.6]} 28. Rf1 {[%clk 0:02:01.3]} 28... Qe3+ {[%clk 0:01:42.2]} 29. Qxe3
{[%clk 0:02:01.7]} 29... Nxe3 {[%clk 0:01:44.1]} 30. Rd6 {[%clk 0:01:53.1]}
30... Nxf1 {[%clk 0:01:44.6]} 31. Kxf1 {[%clk 0:01:54]} 31... Kf8 {[%clk
0:01:44.8]} 32. Kf2 {[%clk 0:01:50.9]} 32... Rc2+ {[%clk 0:01:43.3]} 33. Ke1
{[%clk 0:01:50.3]} 33... Bc4 {[%clk 0:01:41.6]} 34. h4 {[%clk 0:01:48.8]} 34...
Bb5 {[%clk 0:01:40.1]} 35. a4 {[%clk 0:01:48.4]} 35... Bxa4 {[%clk 0:01:41.2]}
36. Rxa6 {[%clk 0:01:49.3]} 36... Bc6 {[%clk 0:01:42.6]} 37. Kd1 {[%clk
0:01:47.4]} 37... Rc4 {[%clk 0:01:43.5]} 38. Rb6 {[%clk 0:01:44.6]} 38... Ke7
{[%clk 0:01:42]} 39. Kd2 {[%clk 0:01:45.1]} 39... Bd7 {[%clk 0:01:38]} 40. Kd3
{[%clk 0:01:45]} 40... Rg4 {[%clk 0:01:38.7]} 0-1

[Event "*** Titled Tuesday Blitz"]
[Site "Chess.com"]
[Date "2019.06.04"]
[Round "10"]
[White "SimonKnightRivendell"]
[Black "oogee"]
[Result "1-0"]
[WhiteElo "2015"]
[BlackElo "2294"]
[TimeControl "180+2"]
[EndTime "15:17:17 PDT"]
[Termination "SimonKnightRivendell won by checkmate"]

1. d4 {[%clk 0:03:01.9]} 1... Nf6 {[%clk 0:03:00.6]} 2. c4 {[%clk 0:03:02.1]}
2... g6 {[%clk 0:03:01.9]} 3. Nf3 {[%clk 0:03:02.6]} 3... Bg7 {[%clk 0:03:03]}
4. g3 {[%clk 0:03:03.8]} 4... O-O {[%clk 0:03:04.3]} 5. Bg2 {[%clk 0:03:05]}
5... d6 {[%clk 0:03:05.7]} 6. Nc3 {[%clk 0:03:04.7]} 6... c6 {[%clk 0:03:06.6]}
7. O-O {[%clk 0:03:04.9]} 7... Qa5 {[%clk 0:03:07.2]} 8. Bd2 {[%clk 0:03:04.5]}
8... Qh5 {[%clk 0:03:07.1]} 9. Ng5 {[%clk 0:02:52.2]} 9... e5 {[%clk 0:02:59.5]}
10. Bf3 {[%clk 0:02:49.3]} 10... Bg4 {[%clk 0:02:57.8]} 11. Bg2 {[%clk
0:02:40.9]} 11... exd4 {[%clk 0:02:56.7]} 12. Nce4 {[%clk 0:02:41.2]} 12... Bxe2
{[%clk 0:02:54.9]} 13. Qb3 {[%clk 0:02:21.7]} 13... b5 {[%clk 0:02:39.3]} 14.
cxb5 {[%clk 0:02:14.5]} 14... Nxe4 {[%clk 0:02:30.5]} 15. Bxe4 {[%clk
0:02:09.6]} 15... h6 {[%clk 0:02:16.6]} 16. bxc6 {[%clk 0:02:03.1]} 16... hxg5
{[%clk 0:02:08.5]} 17. Qb7 {[%clk 0:01:53.8]} 17... Nxc6 {[%clk 0:01:56.7]} 18.
Qxc6 {[%clk 0:01:51.8]} 18... Bxf1 {[%clk 0:01:42]} 19. Rxf1 {[%clk 0:01:49.9]}
19... Rae8 {[%clk 0:01:28.5]} 20. Bd5 {[%clk 0:01:39]} 20... Be5 {[%clk
0:01:21.6]} 21. Bf3 {[%clk 0:01:22.7]} 21... g4 {[%clk 0:01:21.1]} 22. Bg2
{[%clk 0:01:23.2]} 22... Kg7 {[%clk 0:01:21.9]} 23. f4 {[%clk 0:01:13.2]} 23...
gxf3 {[%clk 0:01:20.4]} 24. Bxf3 {[%clk 0:01:14.1]} 24... Qh3 {[%clk 0:01:17.2]}
25. Bg2 {[%clk 0:01:09.7]} 25... Qh7 {[%clk 0:01:10.2]} 26. Bd5 {[%clk
0:01:09.9]} 26... Rh8 {[%clk 0:01:06.1]} 27. Rxf7+ {[%clk 0:01:08.9]} 27... Kg8
{[%clk 0:01:05.2]} 28. Qxe8# {[%clk 0:01:08.7]} 1-0

[Event "*** Titled Tuesday Blitz"]
[Site "Chess.com"]
[Date "2019.06.04"]
[Round "10"]
[White "Fighter008"]
[Black "ENEASZ"]
[Result "0-1"]
[WhiteElo "2630"]
[BlackElo "2504"]
[TimeControl "180+2"]
[EndTime "15:17:25 PDT"]
[Termination "ENEASZ won by resignation"]

1. e4 {[%clk 0:03:01.9]} 1... d6 {[%clk 0:02:58.5]} 2. d4 {[%clk 0:03:01.3]}
2... Nf6 {[%clk 0:02:58.8]} 3. Nc3 {[%clk 0:03:01.3]} 3... e5 {[%clk 0:02:59.8]}
4. Nf3 {[%clk 0:03:00.9]} 4... Nbd7 {[%clk 0:02:58.2]} 5. Bc4 {[%clk 0:03:00.5]}
5... Be7 {[%clk 0:02:59.3]} 6. O-O {[%clk 0:03:01.2]} 6... O-O {[%clk
0:03:00.5]} 7. a4 {[%clk 0:03:02.5]} 7... c6 {[%clk 0:03:00.3]} 8. Re1 {[%clk
0:03:03.3]} 8... b6 {[%clk 0:02:57.6]} 9. h3 {[%clk 0:03:03.3]} 9... a6 {[%clk
0:02:58.3]} 10. Bb3 {[%clk 0:03:02.2]} 10... Rb8 {[%clk 0:02:58.9]} 11. Nh4
{[%clk 0:03:00.8]} 11... exd4 {[%clk 0:02:58.7]} 12. Qxd4 {[%clk 0:03:00.8]}
12... Nc5 {[%clk 0:03:00]} 13. Ba2 {[%clk 0:03:00.8]} 13... b5 {[%clk
0:02:55.9]} 14. axb5 {[%clk 0:02:57.4]} 14... axb5 {[%clk 0:02:57.8]} 15. b4
{[%clk 0:02:55.9]} 15... Ne6 {[%clk 0:02:50.4]} 16. Qd3 {[%clk 0:02:56.2]} 16...
g6 {[%clk 0:02:51.3]} 17. Bh6 {[%clk 0:02:54.7]} 17... Re8 {[%clk 0:02:52.3]}
18. Nf3 {[%clk 0:02:52.6]} 18... Nh5 {[%clk 0:02:51.5]} 19. Rad1 {[%clk
0:02:45.5]} 19... Bf6 {[%clk 0:02:50]} 20. Ne2 {[%clk 0:02:42.1]} 20... Be7
{[%clk 0:02:29.4]} 21. Ned4 {[%clk 0:02:35.6]} 21... Qb6 {[%clk 0:02:22]} 22.
Nxe6 {[%clk 0:02:26.2]} 22... Bxe6 {[%clk 0:02:23.9]} 23. Bxe6 {[%clk
0:02:26.8]} 23... fxe6 {[%clk 0:02:25.8]} 24. Nd4 {[%clk 0:02:27.9]} 24... Bf6
{[%clk 0:02:12.4]} 25. Be3 {[%clk 0:02:22.5]} 25... Qc7 {[%clk 0:02:11.9]} 26.
Qb3 {[%clk 0:02:22.1]} 26... Ng7 {[%clk 0:02:07.1]} 27. c4 {[%clk 0:02:20.9]}
27... Bxd4 {[%clk 0:01:35.3]} 28. Bxd4 {[%clk 0:02:19.3]} 28... e5 {[%clk
0:01:36.5]} 29. Qb2 {[%clk 0:02:20.2]} 29... exd4 {[%clk 0:01:30.4]} 30. Qxd4
{[%clk 0:02:14.2]} 30... Re6 {[%clk 0:01:24.9]} 31. f4 {[%clk 0:02:11.2]} 31...
Qf7 {[%clk 0:01:20.8]} 32. Rf1 {[%clk 0:02:10.5]} 32... Rf6 {[%clk 0:01:15.7]}
33. e5 {[%clk 0:02:09.5]} 33... dxe5 {[%clk 0:01:16.6]} 34. fxe5 {[%clk
0:02:11.4]} 34... Rxf1+ {[%clk 0:01:17]} 35. Rxf1 {[%clk 0:02:12.9]} 35... Qxc4
{[%clk 0:01:15.8]} 36. Qd6 {[%clk 0:02:13.6]} 36... Re8 {[%clk 0:01:14]} 37. Re1
{[%clk 0:02:09.5]} 37... Qd5 {[%clk 0:01:10.3]} 38. Qc7 {[%clk 0:02:09]} 38...
Ne6 {[%clk 0:01:07.1]} 39. Qb7 {[%clk 0:02:03.6]} 39... Nf4 {[%clk 0:01:07.6]}
0-1

[Event "*** Titled Tuesday Blitz"]
[Site "Chess.com"]
[Date "2019.06.04"]
[Round "10"]
[White "el-reptiliano"]
[Black "Chesska7"]
[Result "0-1"]
[WhiteElo "2195"]
[BlackElo "2167"]
[TimeControl "180+2"]
[EndTime "15:17:30 PDT"]
[Termination "Chesska7 won by resignation"]

1. Nf3 {[%clk 0:03:01.9]} 1... Nf6 {[%clk 0:02:57.1]} 2. c4 {[%clk 0:03:01.1]}
2... e6 {[%clk 0:02:56.4]} 3. d4 {[%clk 0:02:54.4]} 3... d5 {[%clk 0:02:57.3]}
4. Nc3 {[%clk 0:02:53.9]} 4... a6 {[%clk 0:02:58.1]} 5. g3 {[%clk 0:02:54.6]}
5... dxc4 {[%clk 0:02:55.6]} 6. Bg2 {[%clk 0:02:55.7]} 6... b5 {[%clk
0:02:48.7]} 7. O-O {[%clk 0:02:52.9]} 7... Bb7 {[%clk 0:02:48.1]} 8. b3 {[%clk
0:02:52.7]} 8... cxb3 {[%clk 0:02:47.1]} 9. axb3 {[%clk 0:02:54.6]} 9... Nbd7
{[%clk 0:02:44.4]} 10. Bd2 {[%clk 0:02:50.5]} 10... c5 {[%clk 0:02:44.1]} 11.
Bh3 {[%clk 0:02:36.7]} 11... Be7 {[%clk 0:02:32.8]} 12. dxc5 {[%clk 0:02:19.7]}
12... Nxc5 {[%clk 0:02:30]} 13. b4 {[%clk 0:02:18]} 13... Nce4 {[%clk
0:02:30.6]} 14. Nxe4 {[%clk 0:02:16.1]} 14... Nxe4 {[%clk 0:02:32.5]} 15. Rb1
{[%clk 0:02:04.5]} 15... Nxd2 {[%clk 0:02:30.3]} 16. Qxd2 {[%clk 0:02:06.4]}
16... Qxd2 {[%clk 0:02:29.4]} 17. Nxd2 {[%clk 0:02:08.3]} 17... O-O {[%clk
0:02:27.9]} 18. Bg2 {[%clk 0:02:09.2]} 18... Bxg2 {[%clk 0:02:27.9]} 19. Kxg2
{[%clk 0:02:11.1]} 19... Rfd8 {[%clk 0:02:28.1]} 20. Ne4 {[%clk 0:02:10.3]}
20... Rd4 {[%clk 0:02:28]} 21. Nc5 {[%clk 0:02:10.1]} 21... Bxc5 {[%clk
0:02:28.1]} 22. bxc5 {[%clk 0:02:12]} 22... Rc4 {[%clk 0:02:28.8]} 23. Rfc1
{[%clk 0:02:13]} 23... Rxc1 {[%clk 0:02:29.7]} 24. Rxc1 {[%clk 0:02:14.9]} 24...
Kf8 {[%clk 0:02:26.8]} 25. Kf3 {[%clk 0:02:15.3]} 25... Ke7 {[%clk 0:02:27.3]}
26. Ke4 {[%clk 0:02:06.8]} 26... Kd7 {[%clk 0:02:27.7]} 27. c6+ {[%clk 0:02:02]}
27... Kc7 {[%clk 0:02:28.1]} 28. h4 {[%clk 0:02:02.8]} 28... a5 {[%clk
0:02:26.1]} 29. h5 {[%clk 0:02:01.9]} 29... h6 {[%clk 0:02:26.3]} 30. g4 {[%clk
0:02:02.1]} 30... Ra6 {[%clk 0:02:25.9]} 31. Rc5 {[%clk 0:02:02]} 31... b4
{[%clk 0:02:20.4]} 32. Kd3 {[%clk 0:02:00.8]} 32... a4 {[%clk 0:02:03.6]} 33.
Rc4 {[%clk 0:01:12]} 33... a3 {[%clk 0:02:02.3]} 34. Rc1 {[%clk 0:01:08.7]}
34... b3 {[%clk 0:02:00.5]} 35. Kc3 {[%clk 0:01:06.8]} 35... b2 {[%clk
0:02:01.7]} 36. Rd1 {[%clk 0:01:07.1]} 36... Rxc6+ {[%clk 0:01:59.5]} 37. Kb3
{[%clk 0:01:08.5]} 37... Rc1 {[%clk 0:02:00.4]} 38. Rd7+ {[%clk 0:01:10]} 0-1

[Event "*** Titled Tuesday Blitz"]
[Site "Chess.com"]
[Date "2019.06.04"]
[Round "10"]
[White "vinniethepooh"]
[Black "axvesik"]
[Result "0-1"]
[WhiteElo "2557"]
[BlackElo "2421"]
[TimeControl "180+2"]
[EndTime "15:17:42 PDT"]
[Termination "axvesik won on time"]

1. d4 {[%clk 0:03:01.9]} 1... Nf6 {[%clk 0:03:00.7]} 2. c4 {[%clk 0:03:02.7]}
2... e6 {[%clk 0:03:01.9]} 3. Nc3 {[%clk 0:03:03.7]} 3... Bb4 {[%clk 0:03:02.3]}
4. e3 {[%clk 0:03:05]} 4... O-O {[%clk 0:03:02.2]} 5. Bd3 {[%clk 0:03:06.3]}
5... d5 {[%clk 0:03:03.2]} 6. Nf3 {[%clk 0:03:07.1]} 6... c5 {[%clk 0:03:04.3]}
7. cxd5 {[%clk 0:03:08.2]} 7... exd5 {[%clk 0:03:03.3]} 8. dxc5 {[%clk
0:03:08.5]} 8... Nc6 {[%clk 0:02:59.2]} 9. O-O {[%clk 0:03:09]} 9... Bg4 {[%clk
0:03:00]} 10. Na4 {[%clk 0:02:47.3]} 10... Qe7 {[%clk 0:02:59.8]} 11. a3 {[%clk
0:02:07.2]} 11... Ba5 {[%clk 0:02:55.2]} 12. Be2 {[%clk 0:02:00.7]} 12... Rad8
{[%clk 0:02:47.3]} 13. b4 {[%clk 0:01:48.7]} 13... Bc7 {[%clk 0:02:47.6]} 14.
Bb2 {[%clk 0:01:48.9]} 14... Rfe8 {[%clk 0:01:58.1]} 15. Nd4 {[%clk 0:01:41.1]}
15... Qe5 {[%clk 0:01:48]} 16. g3 {[%clk 0:00:57.8]} 16... Qh5 {[%clk 0:01:47]}
17. Nf3 {[%clk 0:00:26.7]} 17... d4 {[%clk 0:01:36]} 18. Bxd4 {[%clk 0:00:12.7]}
18... Nxd4 {[%clk 0:01:29.5]} 19. Nxd4 {[%clk 0:00:14.2]} 19... Rxd4 {[%clk
0:01:27.4]} 20. Bxg4 {[%clk 0:00:05.9]} 20... Nxg4 {[%clk 0:01:27.1]} 0-1

[Event "*** Titled Tuesday Blitz"]
[Site "Chess.com"]
[Date "2019.06.04"]
[Round "10"]
[White "saraswathii"]
[Black "Bad4life"]
[Result "0-1"]
[WhiteElo "2292"]
[BlackElo "2435"]
[TimeControl "180+2"]
[EndTime "15:17:42 PDT"]
[Termination "Bad4life won by checkmate"]

1. e4 {[%clk 0:03:01.9]} 1... c5 {[%clk 0:02:58.6]} 2. Nf3 {[%clk 0:03:01.7]}
2... d6 {[%clk 0:02:59.7]} 3. d3 {[%clk 0:03:02.2]} 3... g6 {[%clk 0:02:59.4]}
4. g3 {[%clk 0:03:03.2]} 4... Bg7 {[%clk 0:03:00.8]} 5. Bg2 {[%clk 0:03:04.1]}
5... Nc6 {[%clk 0:03:00.1]} 6. O-O {[%clk 0:03:05.6]} 6... Bd7 {[%clk
0:03:01.5]} 7. c3 {[%clk 0:03:06.7]} 7... Qc8 {[%clk 0:03:03]} 8. d4 {[%clk
0:03:06]} 8... Bh3 {[%clk 0:03:02]} 9. Be3 {[%clk 0:03:05.6]} 9... h5 {[%clk
0:02:59.1]} 10. dxc5 {[%clk 0:03:04.9]} 10... dxc5 {[%clk 0:02:59.2]} 11. Bxc5
{[%clk 0:03:06.8]} 11... h4 {[%clk 0:02:55.9]} 12. Nxh4 {[%clk 0:03:05.3]} 12...
Bxg2 {[%clk 0:02:50.8]} 13. Kxg2 {[%clk 0:03:01.8]} 13... Bf6 {[%clk 0:02:30.5]}
14. Nf3 {[%clk 0:02:57.1]} 14... Ne5 {[%clk 0:02:20.2]} 15. Nxe5 {[%clk
0:02:56]} 15... Qh3+ {[%clk 0:02:13.9]} 16. Kf3 {[%clk 0:02:56]} 16... Bxe5
{[%clk 0:02:14.6]} 17. Qa4+ {[%clk 0:02:52.7]} 17... Kf8 {[%clk 0:02:14.8]} 18.
Nd2 {[%clk 0:02:50.8]} 18... Nf6 {[%clk 0:02:11.7]} 19. Ke2 {[%clk 0:02:42.8]}
19... Qg4+ {[%clk 0:02:00.1]} 20. f3 {[%clk 0:02:32.7]} 20... Rxh2+ {[%clk
0:02:01.3]} 21. Rf2 {[%clk 0:02:32.5]} 21... Qxg3 {[%clk 0:01:59]} 22. Nf1
{[%clk 0:02:32.7]} 22... Rxf2+ {[%clk 0:01:53.4]} 23. Bxf2 {[%clk 0:02:34.6]}
23... Qh3 {[%clk 0:01:47.4]} 24. Rd1 {[%clk 0:02:19.8]} 24... Nh5 {[%clk
0:01:48.3]} 25. Qd7 {[%clk 0:02:02.9]} 25... Nf4+ {[%clk 0:01:48.9]} 26. Ke3
{[%clk 0:02:03]} 26... Ne6 {[%clk 0:01:50.3]} 27. Qxb7 {[%clk 0:01:53.5]} 27...
Rb8 {[%clk 0:01:50.1]} 28. Qxa7 {[%clk 0:01:52.2]} 28... Qh6+ {[%clk 0:01:47.4]}
29. Ke2 {[%clk 0:01:49.9]} 29... Nf4+ {[%clk 0:01:43.1]} 30. Ke1 {[%clk
0:01:47.9]} 30... Ng2+ {[%clk 0:01:44.4]} 31. Ke2 {[%clk 0:01:48.6]} 31... Rxb2+
{[%clk 0:01:38.4]} 32. Kd3 {[%clk 0:01:49.3]} 32... Nf4+ {[%clk 0:01:27.2]} 33.
Kc4 {[%clk 0:01:49.7]} 33... g5 {[%clk 0:01:19.6]} 34. Rd8+ {[%clk 0:01:27.4]}
34... Kg7 {[%clk 0:01:20.7]} 35. Qxe7 {[%clk 0:01:28.6]} 35... Qa6+ {[%clk
0:01:18.9]} 36. Kc5 {[%clk 0:01:25.3]} 36... Qb5# {[%clk 0:01:17.1]} 0-1